bitfinex/quotes_BTCUSD_20250917
["timestamp","ask_amount","ask_price","bid_price","bid_amount"]
[1758088752990,0.29840351,117280.0,117270.0,0.0001]
[1758088753576,0.29940351,117280.0,117270.0,0.0001]
[1758088754138,0.34640579,117280.0,117270.0,0.0001]
[1758088754347,1.0188825,117280.0,117270.0,0.0001]
[1758088754775,0.97188022,117280.0,117270.0,0.0001]
[1758088755599,0.97088022,117280.0,117270.0,0.0001]
[1758088756445,0.97188022,117280.0,117270.0,0.0001]
[1758088756857,0.97088022,117280.0,117270.0,0.0001]
[1758088757057,1.00103212,117280.0,117270.0,0.0001]
[1758088757240,1.06085861,117280.0,117270.0,0.0001]
[1758088757462,1.06077861,117280.0,117270.0,0.0001]
[1758088758003,0.77833861,117280.0,117270.0,0.0001]
[1758088758206,0.71951212,117280.0,117270.0,0.0001]
[1758088758410,1.00191212,117280.0,117270.0,0.0001]
[1758088759979,1.00184996,117280.0,117270.0,0.0001]
[1758088760192,1.30145267,117280.0,117270.0,0.0001]
[1758088762603,1.99094993,117280.0,117270.0,0.0001]
[1758088762819,2.07745138,117280.0,117270.0,0.0001]
[1758088763006,2.41745138,117280.0,117270.0,0.0001]
[1758088763206,0.1705466,117270.0,117260.0,0.0001]
[1758088763488,0.99623287,117270.0,117260.0,0.0001]
[1758088763702,0.97864721,117270.0,117260.0,0.0001]
[1758088763957,1.78106592,117270.0,117260.0,0.0001]
[1758088764346,0.17057569,117250.0,117240.0,0.00056858]
[1758088764572,0.96611006,117250.0,117240.0,0.00056858]
[1758088764778,0.9718644,117250.0,117240.0,0.00056858]
[1758088764994,0.9719644,117250.0,117240.0,0.00056858]
[1758088765202,2.12109501,117250.0,117240.0,0.00056858]
[1758088765410,1.3450963,117250.0,117240.0,0.00056858]
[1758088765612,1.6273363,117250.0,117240.0,0.00056858]
[1758088765725,1.6273363,117250.0,117240.0,0.00156858]
[1758088767428,1.3450963,117250.0,117240.0,0.00256858]
[1758088767606,1.3421163,117250.0,117240.0,0.00256858]
[1758088768076,0.28246714,117250.0,117240.0,0.00464858]
[1758088768277,0.60192577,117250.0,117240.0,0.17830882]
[1758088768482,0.60192577,117250.0,117240.0,0.19592882]
[1758088768483,0.08660145,117250.0,117240.0,0.19592882]
[1758088768912,0.43135008,117250.0,117240.0,0.19592882]
[1758088769501,0.43135008,117250.0,117240.0,0.47808882]
[1758088769658,0.08660145,117250.0,117240.0,0.46046882]
[1758088769868,0.43138883,117250.0,117240.0,0.47808882]
[1758088770076,0.08660145,117250.0,117240.0,0.47808882]
[1758088770940,0.0001,117250.0,117240.0,0.46046882]
[1758088771146,0.0001,117250.0,117240.0,0.47808882]
[1758088771833,0.0001,117250.0,117240.0,0.17830882]
[1758088772039,0.0001,117250.0,117240.0,0.00256858]
[1758088772040,0.50213045,117250.0,117240.0,0.00256858]
[1758088772253,0.50213045,117250.0,117240.0,0.17530882]
[1758088772457,0.67072614,117250.0,117240.0,0.17835882]
[1758088772884,0.47654045,117250.0,117240.0,0.17835882]
[1758088773095,0.67072614,117250.0,117240.0,0.17835882]
[1758088773300,0.67072614,117250.0,117240.0,0.46043882]
[1758088773506,0.47654045,117250.0,117240.0,0.46043882]
[1758088773720,0.08660145,117250.0,117240.0,0.46043882]
[1758088773932,0.47654045,117250.0,117240.0,0.46043882]
[1758088774141,0.64711614,117250.0,117240.0,0.46043882]
[1758088774584,0.47654045,117250.0,117240.0,0.46043882]
[1758088774790,0.64711614,117250.0,117240.0,0.46043882]
[1758088775983,0.67567614,117250.0,117240.0,0.28456858]
[1758088776198,0.67567614,117250.0,117240.0,0.00256858]
[1758088776629,0.67270614,117250.0,117240.0,0.00256858]
[1758088777445,0.67270614,117250.0,117240.0,0.00156858]
[1758088778158,0.76217759,117250.0,117240.0,0.00156858]
[1758088778334,1.04582804,117250.0,117240.0,0.00156858]
[1758088778543,1.07145457,117250.0,117240.0,0.00156858]
[1758088779130,1.46139357,117250.0,117240.0,0.00046858]
[1758088779933,1.07173091,117250.0,117240.0,0.00046858]
[1758088780349,1.52119078,117250.0,117240.0,0.00046858]
[1758088780613,1.60769223,117250.0,117240.0,0.00046858]
[1758088781024,1.60869223,117250.0,117240.0,0.00046858]
[1758088781241,1.60969223,117250.0,117240.0,0.00046858]
[1758088781421,1.60869223,117250.0,117240.0,0.00046858]
[1758088781624,1.60969223,117250.0,117240.0,0.00046858]
[1758088782040,1.52519078,117250.0,117240.0,0.00046858]
[1758088783070,1.52515078,117250.0,117240.0,0.00046858]
[1758088783522,1.54108924,117250.0,117240.0,0.00046858]
[1758088783725,1.25924924,117250.0,117240.0,0.00046858]
[1758088783931,1.54108924,117250.0,117240.0,0.00046858]
[1758088784138,1.56765936,117250.0,117240.0,0.00046858]
[1758088785216,1.57363658,117250.0,117240.0,0.00046858]
[1758088785653,1.29179658,117250.0,117240.0,0.00046858]
[1758088785839,1.57359658,117250.0,117240.0,0.00046858]
[1758088786035,1.29179658,117250.0,117240.0,0.00046858]
[1758088786261,1.57355658,117250.0,117240.0,0.00046858]
[1758088786571,1.57355634,117250.0,117240.0,0.00046858]
[1758088787001,2.13135155,117250.0,117240.0,0.00046858]
[1758088787668,2.68914676,117250.0,117240.0,0.00046858]
[1758088789306,2.68906676,117250.0,117240.0,0.00046858]
[1758088789850,1.29179634,117250.0,117240.0,0.00046858]
[1758088790055,1.57347634,117250.0,117240.0,0.00046858]
[1758088790492,2.13127155,117250.0,117240.0,0.00046858]
[1758088790722,2.22124155,117250.0,117240.0,0.00046858]
[1758088790970,1.57347634,117250.0,117240.0,0.00046858]
[1758088792074,0.89507432,117250.0,117240.0,0.00046858]
[1758088792276,1.17667432,117250.0,117240.0,0.00046858]
[1758088792477,1.54682622,117250.0,117240.0,0.00046858]
[1758088792655,1.51667432,117250.0,117240.0,0.00046858]
[1758088792863,1.54682622,117250.0,117240.0,0.00046858]
[1758088793073,1.5468257,117250.0,117240.0,0.00046858]
[1758088794594,0.65069859,117250.0,117240.0,0.00046858]
[1758088794807,1.49100727,117250.0,117240.0,0.00046858]
[1758088796133,1.48503081,117250.0,117240.0,0.00046858]
[1758088797792,1.48206319,117250.0,117240.0,0.00046858]
[1758088798245,1.46612235,117250.0,117240.0,0.00046858]
[1758088799347,1.46909235,117250.0,117240.0,0.00046858]
[1758088799843,1.5857457,117250.0,117240.0,0.00046858]
[1758088800029,1.52486984,117250.0,117240.0,0.00046858]
[1758088800656,1.54081339,117250.0,117240.0,0.00046858]
[1758088801293,0.98301818,117250.0,117240.0,0.00046858]
[1758088801498,1.25925339,117250.0,117240.0,0.00046858]
[1758088801695,1.54061339,117250.0,117240.0,0.00046858]
[1758088801909,1.53764339,117250.0,117240.0,0.00046858]
[1758088802130,0.69849018,117250.0,117240.0,0.00543858]
[1758088802339,0.93827463,117250.0,117240.0,0.00543858]
[1758088802544,0.56812273,117250.0,117240.0,0.17602882]
[1758088802749,0.26117714,117250.0,117240.0,0.21070784]
[1758088802960,0.09060145,117250.0,117240.0,0.19364882]
[1758088803167,0.09060145,117250.0,117240.0,0.19374882]
[1758088803414,0.0041,117250.0,117240.0,0.19374882]
[1758088804039,0.0041,117250.0,117240.0,0.55694882]
[1758088804258,0.002,117250.0,117240.0,0.55694882]
[1758088804482,0.0001,117260.0,117250.0,0.17057569]
[1758088804616,0.0001,117260.0,117250.0,0.20818325]
[1758088804824,0.0001,117260.0,117250.0,0.19316569]
[1758088805041,0.0001,117270.0,117260.0,0.17056114]
[1758088805319,0.0001,117270.0,117260.0,0.19315114]
[1758088806214,0.0121,117280.0,117270.0,1.09775416]
[1758088806329,0.0121,117280.0,117270.0,1.17285181]
[1758088806528,0.0121,117280.0,117270.0,1.57285181]
[1758088806743,0.0121,117280.0,117270.0,1.85405181]
[1758088807181,0.0121,117280.0,117270.0,1.57285181]
[1758088807385,0.0121,117280.0,117270.0,1.85401181]
[1758088807591,0.012,117280.0,117270.0,1.85401181]
[1758088808241,0.012,117280.0,117270.0,1.2982166]
[1758088808459,0.012,117280.0,117270.0,1.85597181]
[1758088808710,0.012,117280.0,117270.0,1.57485181]
[1758088808924,0.012,117280.0,117270.0,1.94243326]
[1758088809803,0.012,117280.0,117270.0,1.94239326]
[1758088810034,0.012,117280.0,117270.0,2.00721851]
[1758088810462,0.012,117280.0,117270.0,2.00717851]
[1758088810684,0.012,117280.0,117270.0,1.72617851]
[1758088810907,0.012,117280.0,117270.0,2.00817851]
[1758088811568,0.012,117280.0,117270.0,2.00827851]
[1758088811777,0.012,117280.0,117270.0,1.72727851]
[1758088811982,0.012,117280.0,117270.0,2.00823851]
[1758088812212,0.012,117280.0,117270.0,1.4504433]
[1758088812467,0.012,117280.0,117270.0,2.00823851]
[1758088812691,0.012,117280.0,117270.0,1.08298185]
[1758088812924,0.012,117280.0,117270.0,1.02390185]
[1758088813171,0.56979521,117280.0,117270.0,1.02390185]
[1758088813402,0.56979521,117280.0,117270.0,0.4594966]
[1758088813846,0.56979521,117280.0,117270.0,0.4564966]
[1758088814057,0.18253206,117280.0,117270.0,0.4741166]
[1758088814269,0.012,117280.0,117270.0,0.4741166]
[1758088814489,0.012,117280.0,117270.0,0.28094]
[1758088814490,0.87110438,117280.0,117270.0,0.28094]
[1758088814721,1.19463872,117280.0,117270.0,0.0001]
[1758088815166,1.19156872,117280.0,117270.0,0.0001]
[1758088815380,0.63377351,117280.0,117270.0,0.00214]
[1758088815599,1.19166872,117280.0,117270.0,0.0001]
[1758088815804,1.16990872,117280.0,117270.0,0.00214]
[1758088816014,1.16792872,117280.0,117270.0,0.00507]
[1758088816215,1.16792872,117280.0,117270.0,0.1756166]
[1758088816631,1.16991872,117280.0,117270.0,0.0001]
[1758088816843,1.19267872,117280.0,117270.0,0.0001]
[1758088817273,1.19772872,117280.0,117270.0,0.0001]
[1758088817680,1.19672872,117280.0,117270.0,0.0001]
[1758088818143,1.19367872,117280.0,117270.0,0.0001]
[1758088818320,1.19567872,117280.0,117270.0,0.0001]
[1758088818782,1.29019653,117280.0,117270.0,0.0001]
[1758088818954,0.2006985,117270.0,117260.0,0.0001]
[1758088819184,0.84499516,117270.0,117260.0,0.0001]
[1758088819427,0.17056114,117260.0,117250.0,0.0001]
[1758088819626,0.83439346,117260.0,117250.0,0.0001]
[1758088819827,0.8376178,117260.0,117250.0,0.00507]
[1758088820037,0.8376178,117260.0,117250.0,0.17564569]
[1758088820038,0.64429666,117260.0,117250.0,0.17564569]
[1758088820256,0.64429666,117260.0,117250.0,0.19326569]
[1758088820453,0.8149578,117260.0,117250.0,0.00507]
[1758088820677,0.8170478,117260.0,117250.0,0.28282]
[1758088820884,0.28201259,117260.0,117250.0,0.00214]
[1758088821111,0.8398078,117260.0,117250.0,0.00214]
[1758088822208,0.8398078,117260.0,117250.0,0.17564569]
[1758088822209,0.25716259,117260.0,117250.0,0.17564569]
[1758088822412,0.64439666,117260.0,117250.0,0.17564569]
[1758088822619,0.8149578,117260.0,117250.0,0.17564569]
[1758088823054,0.0001,117260.0,117250.0,0.17564569]
[1758088823263,0.55789521,117260.0,117250.0,0.19326569]
[1758088823674,0.0011,117260.0,117250.0,0.19326569]
[1758088824316,0.0021,117260.0,117250.0,0.19326569]
[1758088824952,0.73045635,117260.0,117250.0,0.28563]
[1758088825197,0.8169578,117260.0,117250.0,0.28563]
[1758088825410,0.8418078,117260.0,117250.0,0.0001]
[1758088825825,0.8447678,117260.0,117250.0,0.0001]
[1758088826869,1.1847678,117260.0,117250.0,0.0001]
[1758088827108,1.1847678,117260.0,117240.0,0.28108858]
[1758088827109,0.17057569,117250.0,117240.0,0.28108858]
[1758088827315,0.85925801,117250.0,117240.0,0.00260858]
[1758088827525,0.83982235,117250.0,117240.0,0.00260858]
[1758088827948,0.83982235,117250.0,117240.0,0.28312858]
[1758088829890,0.83982235,117250.0,117240.0,0.00260858]
[1758088830105,0.83982235,117250.0,117240.0,0.00056858]
[1758088830328,0.28202714,117250.0,117240.0,0.00056858]
[1758088830537,0.83982235,117250.0,117240.0,0.00056858]
[1758088830745,0.84278235,117250.0,117240.0,0.00056858]
[1758088831176,0.83982235,117250.0,117240.0,0.00254858]
[1758088832042,0.83773235,117250.0,117240.0,0.00562858]
[1758088832463,0.83969235,117250.0,117240.0,0.00254858]
[1758088834316,0.83969235,117250.0,117240.0,0.00056858]
[1758088834317,0.84277235,117250.0,117240.0,0.00056858]
[1758088835461,0.28189714,117250.0,117240.0,0.00254858]
[1758088835664,0.83969235,117250.0,117240.0,0.00056858]
[1758088836085,0.08660145,117250.0,117240.0,0.17621882]
[1758088836307,0.0001,117250.0,117240.0,0.19383882]
[1758088836545,0.17066229,117260.0,117240.0,0.19383882]
[1758088836753,0.81495895,117260.0,117240.0,0.19075882]
[1758088836896,0.81495895,117260.0,117250.0,0.00308]
[1758088837107,0.81495895,117260.0,117250.0,0.00506]
[1758088837311,0.84006895,117260.0,117250.0,0.00198]
[1758088837757,0.84006895,117260.0,117250.0,0.00208]
[1758088838006,0.84106895,117260.0,117250.0,0.00208]
[1758088840043,0.83910895,117260.0,117250.0,0.00516]
[1758088840272,0.83978032,117260.0,117250.0,0.00516]
[1758088841189,0.67227715,117260.0,117250.0,0.00516]
[1758088841915,0.649126,117260.0,117250.0,0.17573569]
[1758088842173,0.66507533,117260.0,117250.0,0.17573569]
[1758088843124,0.49451419,117260.0,117250.0,0.17573569]
[1758088843300,0.66507533,117260.0,117250.0,0.17573569]
[1758088844510,0.69018533,117260.0,117250.0,0.00208]
[1758088844763,0.68822533,117260.0,117250.0,0.00516]
[1758088845595,0.68822533,117260.0,117250.0,0.17573569]
[1758088846097,0.66507533,117260.0,117250.0,0.17573569]
[1758088846310,0.66507533,117260.0,117250.0,0.00516]
[1758088847441,0.66507533,117260.0,117250.0,0.2852]
[1758088847650,0.68822533,117260.0,117250.0,0.2852]
[1758088847859,0.29826192,117260.0,117250.0,0.45577569]
[1758088848066,0.68822533,117260.0,117250.0,0.45577569]
[1758088850965,0.66510303,117260.0,117250.0,0.45577569]
[1758088851167,0.47856486,117260.0,117250.0,0.45577569]
[1758088851374,0.649126,117260.0,117250.0,0.45565569]
[1758088852130,0.25916259,117260.0,117250.0,0.45565569]
[1758088852338,0.649126,117260.0,117250.0,0.45565569]
[1758088854308,0.672276,117260.0,117250.0,0.45557569]
[1758088854521,0.649126,117260.0,117250.0,0.45557569]
[1758088854818,0.47856486,117260.0,117250.0,0.45557569]
[1758088855211,0.47856486,117260.0,117250.0,0.47319569]
[1758088856010,0.64907809,117260.0,117250.0,0.47319569]
[1758088856212,0.94869713,117260.0,117250.0,0.45553569]
[1758088856641,0.94869713,117260.0,117250.0,0.45549569]
[1758088856860,0.97268713,117260.0,117250.0,0.45549569]
[1758088857068,0.77813599,117260.0,117250.0,0.45549569]
[1758088857273,0.77813599,117260.0,117250.0,0.47311569]
[1758088857692,0.77813599,117260.0,117250.0,0.45549569]
[1758088857900,0.94869713,117260.0,117250.0,0.45549569]
[1758088858314,0.97147713,117260.0,117250.0,0.45549569]
[1758088858664,0.08860145,117260.0,117250.0,0.45549569]
[1758088858884,0.77813599,117260.0,117250.0,0.47311569]
[1758088860136,0.94869713,117260.0,117250.0,0.47303569]
[1758088860307,0.94869713,117260.0,117250.0,0.45541569]
[1758088860918,1.02878908,117260.0,117240.0,0.00056858]
[1758088861118,1.02878908,117260.0,117240.0,0.00046858]
[1758088861119,3.36255559,117250.0,117240.0,0.00046858]
[1758088861319,2.10088804,117250.0,117240.0,0.00046858]
[1758088861699,2.42223685,117250.0,117240.0,0.00046858]
[1758088861908,2.42233685,117250.0,117240.0,0.00046858]
[1758088862330,2.42333685,117250.0,117240.0,0.00046858]
[1758088862672,2.42233685,117250.0,117240.0,0.00046858]
[1758088863297,3.45663866,117250.0,117240.0,0.00046858]
[1758088863503,3.45663866,117250.0,117240.0,1e-08]
[1758088864076,2.60446793,117250.0,117240.0,1e-08]
[1758088864274,2.60746793,117250.0,117240.0,1e-08]
[1758088864524,2.60438793,117250.0,117240.0,1e-08]
[1758088864726,2.32482793,117250.0,117240.0,1e-08]
[1758088864971,2.60938793,117250.0,117240.0,1e-08]
[1758088865171,2.33282793,117250.0,117240.0,1e-08]
[1758088865374,1.04221446,117250.0,117240.0,1e-08]
[1758088865570,1.3157802,117250.0,117240.0,1e-08]
[1758088865983,1.3429321,117250.0,117240.0,1e-08]
[1758088866343,1.0633721,117250.0,117240.0,1e-08]
[1758088866550,1.32694908,117250.0,117240.0,1e-08]
[1758088867430,1.32694908,117250.0,117240.0,0.45525025]
[1758088867431,0.09460145,117250.0,117240.0,0.45525025]
[1758088867599,0.09460145,117250.0,117240.0,0.47287025]
[1758088867600,0.47990149,117250.0,117240.0,0.47287025]
[1758088867820,0.47990149,117250.0,117240.0,0.47297025]
[1758088868036,0.48390149,117250.0,117240.0,0.47297025]
[1758088868247,0.47990149,117250.0,117240.0,0.47297025]
[1758088868451,0.08960145,117250.0,117240.0,0.47297025]
[1758088868678,0.09160145,117250.0,117240.0,0.47297025]
[1758088868885,0.47990149,117250.0,117240.0,0.47297025]
[1758088869102,0.08960145,117250.0,117240.0,0.47297025]
[1758088869315,0.0031,117250.0,117240.0,0.47297025]
[1758088869765,0.39040004,117250.0,117240.0,0.47297025]
[1758088870380,0.0001,117250.0,117240.0,0.47297025]
[1758088870591,0.39040004,117260.0,117250.0,0.17057569]
[1758088870812,0.47690149,117260.0,117250.0,0.21039325]
[1758088871028,0.08660145,117260.0,117250.0,0.19333569]
[1758088871237,0.47690149,117260.0,117250.0,0.27525569]
[1758088871886,0.17917434,117270.0,117260.0,0.17056114]
[1758088871887,0.39040004,117270.0,117260.0,0.17056114]
[1758088872126,0.47690149,117270.0,117260.0,0.18960725]
[1758088872344,0.47690149,117270.0,117260.0,0.47272114]
[1758088872764,0.08660145,117270.0,117260.0,0.47272114]
[1758088872984,0.39040004,117270.0,117260.0,0.47282114]
[1758088873648,0.39240004,117270.0,117260.0,0.47282114]
[1758088873859,0.39240004,117270.0,117260.0,0.19342114]
[1758088874078,0.39240004,117270.0,117260.0,0.47274114]
[1758088874311,0.39240004,117270.0,117260.0,0.19342114]
[1758088874532,0.39240004,117270.0,117260.0,0.47274114]
[1758088874798,0.0021,117270.0,117260.0,0.47274114]
[1758088874998,0.39240004,117270.0,117260.0,0.47274114]
[1758088875423,0.005,117270.0,117260.0,0.47274114]
[1758088875855,0.005,117270.0,117260.0,0.87274114]
[1758088876317,0.003,117270.0,117260.0,0.87274114]
[1758088876746,0.004,117270.0,117260.0,0.87274114]
[1758088877522,0.004,117270.0,117260.0,1.68954263]
[1758088877745,0.004,117270.0,117260.0,1.68942263]
[1758088878911,0.004,117270.0,117260.0,1.29912259]
[1758088879113,0.004,117270.0,117260.0,1.41022263]
[1758088879250,0.004,117270.0,117260.0,1.68938263]
[1758088879457,0.001,117270.0,117260.0,1.68938263]
[1758088879695,0.001,117270.0,117260.0,1.41022263]
[1758088879918,0.001,117270.0,117260.0,1.68938263]
[1758088880087,0.003,117270.0,117260.0,1.68934263]
[1758088880459,0.003,117270.0,117260.0,1.29904259]
[1758088881081,0.003,117270.0,117260.0,1.01992259]
[1758088881289,0.003,117270.0,117260.0,1.29904259]
[1758088882499,0.003,117270.0,117260.0,1.01992259]
[1758088882710,0.003,117270.0,117260.0,1.29900259]
[1758088883804,0.003,117270.0,117260.0,1.01992259]
[1758088884026,0.003,117270.0,117260.0,1.35892259]
[1758088884453,0.001,117270.0,117260.0,1.35892259]
[1758088884666,0.001,117270.0,117260.0,1.07992259]
[1758088884900,0.003,117270.0,117260.0,1.07992259]
[1758088885100,0.002,117270.0,117260.0,1.35888259]
[1758088885312,0.003,117270.0,117260.0,1.35888259]
[1758088885703,0.002,117270.0,117260.0,1.35888259]
[1758088886167,0.40230004,117280.0,117270.0,0.1705466]
[1758088886371,0.40230004,117280.0,117270.0,0.1933066]
[1758088886589,0.40230004,117280.0,117270.0,0.4722266]
[1758088887009,0.012,117280.0,117270.0,0.8722266]
[1758088887643,0.014,117280.0,117270.0,0.8722266]
[1758088888263,0.014,117280.0,117270.0,0.8723266]
[1758088888937,0.015,117280.0,117270.0,0.8723266]
[1758088890250,0.015,117280.0,117270.0,0.8722466]
[1758088891367,0.015,117280.0,117270.0,0.5934066]
[1758088891844,0.40530004,117280.0,117270.0,0.5934066]
[1758088891959,0.40530004,117280.0,117270.0,0.8721666]
[1758088892176,0.40530004,117280.0,117270.0,0.5934066]
[1758088892377,0.40530004,117280.0,117270.0,0.8721666]
[1758088893189,0.40530004,117280.0,117270.0,0.5934066]
[1758088893396,0.40530004,117280.0,117270.0,0.5757866]
[1758088893598,0.66233355,117280.0,117270.0,0.00524]
[1758088893812,0.66431355,117280.0,117270.0,0.00209]
[1758088894025,1.03076355,117280.0,117270.0,0.27882]
[1758088894230,0.64046351,117280.0,117270.0,0.27882]
[1758088894423,0.1705466,117270.0,117260.0,0.0601]
[1758088894635,0.69333375,117270.0,117260.0,0.27882]
[1758088894854,0.67578809,117270.0,117260.0,0.0001]
[1758088895247,0.70593999,117270.0,117260.0,0.0001]
[1758088895453,0.70603999,117270.0,117260.0,0.0001]
[1758088895661,0.45197145,117270.0,117260.0,0.0001]
[1758088895858,0.98744809,117270.0,117260.0,0.00531]
[1758088896060,1.01280809,117270.0,117260.0,0.00208]
[1758088896264,0.17056114,117260.0,117250.0,0.00323]
[1758088896516,0.66689829,117260.0,117250.0,0.27878]
[1758088896738,0.67283263,117260.0,117250.0,0.27878]
[1758088897057,0.67283263,117260.0,117250.0,0.28086]
[1758088897265,0.67283263,117260.0,117250.0,0.27878]
[1758088897898,0.67283263,117260.0,117250.0,0.28086]
[1758088898103,0.67283263,117260.0,117250.0,0.28082]
[1758088898715,0.67283263,117260.0,117250.0,0.27874]
[1758088899328,0.67283263,117260.0,117250.0,0.0001]
[1758088899531,0.67283263,117260.0,117250.0,0.27974]
[1758088899747,0.67588263,117260.0,117250.0,0.0001]
[1758088899963,0.69180829,117260.0,117250.0,0.27874]
[1758088900174,0.69280829,117260.0,117250.0,0.0001]
[1758088900383,0.77930974,117260.0,117250.0,0.0001]
[1758088901415,0.76338408,117260.0,117250.0,0.0001]
[1758088901878,0.76305982,117260.0,117250.0,0.0001]
[1758088902077,0.93056814,117260.0,117250.0,0.0001]
[1758088903762,0.96072004,117260.0,117250.0,0.0001]
[1758088903978,1.31663793,117260.0,117250.0,0.0001]
[1758088904405,0.17057569,117250.0,117240.0,0.00010001]
[1758088904611,1.1126569,117250.0,117240.0,0.00010001]
[1758088904847,1.10903591,117250.0,117240.0,0.00010001]
[1758088905053,1.13755591,117250.0,117240.0,0.00010001]
[1758088905461,1.16770781,117250.0,117240.0,0.00010001]
[1758088907445,1.59420926,117250.0,117240.0,0.00010001]
[1758088907651,1.59420926,117250.0,117240.0,1e-08]
[1758088908245,1.59520926,117250.0,117240.0,1e-08]
[1758088908894,1.59620926,117250.0,117240.0,1e-08]
[1758088910374,1.59608926,117250.0,117240.0,1e-08]
[1758088910514,1.60436936,117250.0,117240.0,1e-08]
[1758088911664,1.32592936,117250.0,117240.0,1e-08]
[1758088911896,1.60436936,117250.0,117240.0,1e-08]
[1758088913576,1.60428936,117250.0,117240.0,1e-08]
[1758088914035,1.32592936,117250.0,117240.0,1e-08]
[1758088914247,1.60428936,117250.0,117240.0,1e-08]
[1758088916326,1.23942791,117250.0,117240.0,1e-08]
[1758088916573,1.51774791,117250.0,117240.0,1e-08]
[1758088916980,1.51479791,117250.0,117240.0,1e-08]
[1758088917345,1.23942791,117250.0,117240.0,1e-08]
[1758088917557,1.51475791,117250.0,117240.0,1e-08]
[1758088917931,1.51770791,117250.0,117240.0,1e-08]
[1758088918105,1.60420936,117250.0,117240.0,1e-08]
[1758088918989,1.32592936,117250.0,117240.0,1e-08]
[1758088919200,1.04672526,117250.0,117240.0,1e-08]
[1758088919403,1.60420936,117250.0,117240.0,1e-08]
[1758088919586,1.51770791,117250.0,117240.0,1e-08]
[1758088920203,0.67366371,117250.0,117240.0,1e-08]
[1758088920475,0.89337181,117250.0,117240.0,0.17591025]
[1758088920667,0.01801467,117250.0,117240.0,0.19353025]
[1758088920825,0.0021,117250.0,117240.0,0.19353025]
[1758088921646,0.0021,117250.0,117240.0,0.20188006]
[1758088921872,0.0021,117250.0,117240.0,0.20198006]
[1758088922305,0.0021,117250.0,117240.0,0.19363025]
[1758088924199,0.0021,117250.0,117240.0,0.25703827]
[1758088924450,0.0021,117250.0,117240.0,0.19363025]
[1758088925680,0.0021,117250.0,117240.0,0.87175025]
[1758088926459,0.0021,117250.0,117240.0,0.87171025]
[1758088926876,0.0021,117250.0,117240.0,0.47171025]
[1758088929717,0.0021,117250.0,117240.0,0.52171025]
[1758088930324,0.002,117250.0,117240.0,0.52171025]
[1758088931065,0.002,117250.0,117240.0,0.92171025]
[1758088931829,0.002,117250.0,117240.0,0.92159025]
[1758088932843,0.002,117250.0,117240.0,1.27885951]
[1758088939475,0.002,117250.0,117240.0,1.36536096]
[1758088939601,0.002,117250.0,117240.0,1.0078517]
[1758088939807,0.002,117250.0,117240.0,1.36512096]
[1758088940704,0.002,117250.0,117240.0,0.64363025]
[1758088940879,0.002,117250.0,117240.0,0.92135025]
[1758088941309,0.002,117250.0,117240.0,0.92131025]
[1758088942474,0.002,117250.0,117240.0,0.64363025]
[1758088942677,0.002,117250.0,117240.0,0.92131025]
[1758088942907,0.35926926,117250.0,117240.0,0.45365025]
[1758088943114,0.55346495,117250.0,117240.0,0.45365025]
[1758088943353,0.6419464,117250.0,117240.0,0.45048025]
[1758088943558,0.28269714,117250.0,117240.0,0.45365025]
[1758088943784,0.6399664,117250.0,117240.0,0.45365025]
[1758088945695,0.6399664,117250.0,117240.0,0.17601025]
[1758088945900,0.6419564,117250.0,117240.0,0.45357025]
[1758088946280,0.6419564,117250.0,117240.0,0.28298001]
[1758088946498,0.6419564,117250.0,117240.0,0.44825025]
[1758088946709,0.28468714,117250.0,117240.0,0.44825025]
[1758088946922,1.2833661,117250.0,117240.0,0.00010001]
[1758088947154,1.2864161,117250.0,117240.0,0.00010001]
[1758088947402,1.30237115,117250.0,117240.0,0.00010001]
[1758088947632,0.66106145,117250.0,117240.0,0.00010001]
[1758088947842,1.25662931,117250.0,117240.0,0.00010001]
[1758088948054,0.66106145,117250.0,117240.0,0.00010001]
[1758088950371,1.27082616,117250.0,117240.0,0.00010001]
[1758088950554,1.37329123,117250.0,117240.0,0.00010001]
[1758088951448,1.35732761,117250.0,117240.0,0.00010001]
[1758088953312,1.69732761,117250.0,117240.0,0.00010001]
[1758088953739,1.70074459,117250.0,117240.0,0.00010001]
[1758088954153,1.97814459,117250.0,117240.0,0.00010001]
[1758088954969,1.97814459,117250.0,117240.0,1e-08]
[1758088956228,0.00551698,117250.0,117240.0,0.53317951]
[1758088956433,0.0021,117250.0,117240.0,0.63695951]
[1758088956629,0.002,117250.0,117240.0,0.63695951]
[1758088956835,0.002,117250.0,117240.0,1.03695951]
[1758088957720,0.002,117250.0,117240.0,0.67969025]
[1758088958081,0.002,117250.0,117240.0,1.03705951]
[1758088958589,0.002,117250.0,117240.0,0.67979025]
[1758088958969,0.002,117250.0,117240.0,0.74232774]
[1758088959737,0.002,117250.0,117240.0,1.099597]
[1758088961621,0.00398,117250.0,117240.0,0.71938774]
[1758088961866,0.20039569,117250.0,117240.0,0.00010001]
[1758088962087,1.17328238,117250.0,117240.0,0.00010001]
[1758088962308,0.57464452,117250.0,117240.0,0.00010001]
[1758088962534,0.21747526,117250.0,117240.0,0.00010001]
[1758088962767,0.56054526,117250.0,117240.0,0.00010001]
[1758088963009,0.91781452,117250.0,117240.0,0.00010001]
[1758088963245,0.9842664,117250.0,117240.0,0.00010001]
[1758088963746,0.9811964,117250.0,117240.0,0.00010001]
[1758088964001,0.98138549,117250.0,117240.0,0.00010001]
[1758088964245,0.62392714,117250.0,117240.0,0.00010001]
[1758088964481,0.45335145,117250.0,117240.0,0.00220001]
[1758088964679,0.99837852,117250.0,117240.0,0.00220001]
[1758088964955,0.99837852,117250.0,117240.0,0.00010001]
[1758088966870,0.62392714,117250.0,117240.0,0.00220001]
[1758088967346,0.99837852,117250.0,117240.0,0.00010001]
[1758088969166,1.28365852,117250.0,117240.0,0.00010001]
[1758088970379,0.90920714,117250.0,117240.0,0.00010001]
[1758088970630,1.28365852,117250.0,117240.0,0.00010001]
[1758088971898,0.99837852,117250.0,117240.0,0.00010001]
[1758088972131,1.28317852,117250.0,117240.0,0.00010001]
[1758088972615,1.28317852,117250.0,117240.0,0.00220001]
[1758088972616,0.62392714,117250.0,117240.0,0.00220001]
[1758088972846,1.25842852,117250.0,117240.0,0.00542001]
[1758088973563,1.26040852,117250.0,117240.0,0.00542001]
[1758088973786,1.28317852,117250.0,117240.0,0.00542001]
[1758088974059,1.28317852,117250.0,117240.0,0.00220001]
[1758088975093,1.28317852,117250.0,117240.0,0.00010001]
[1758088976384,0.90872714,117250.0,117240.0,0.00010001]
[1758088976594,1.28317852,117250.0,117240.0,0.00010001]
[1758088977391,0.90872714,117250.0,117240.0,0.00010001]
[1758088977578,1.28624852,117250.0,117240.0,0.00010001]
[1758088978100,1.28317852,117250.0,117240.0,0.00210001]